Cogmind - Beta 14 @@@ ROGUE MODE // 2025.01.08 @ 16:22:07 Player: acra Result: Self-destructed Performance ------------- Evolutions (2) 1000 Regions Visited (5) 1000 Robots Destroyed (36) 180 Value Destroyed (1171) 1171 Prototype IDs (3) 60 Alien Tech Used (0) 0 Bonus (0) 0 TOTAL SCORE: 3411 Bonus ------- None Cogmind --------- Core Integrity 242/550 Matter 300/300 Energy 415/415 System Corruption 0% Temperature Cool (0) Movement Core (200) Ox3 Location -8/Materials Parts ------- > --- POWER (1) -------- Improved Ion Engine > --- PROPULSION (2) --- (None) > --- UTILITY (6) ------ Medium Battery Visual Processing Unit Hacking Suite > --- WEAPON (2) ------- Heavy Mace > --- INVENTORY (5) ---- Aluminum Leg Thief Drone Bay (3/3) Particle Gun Grenade Launcher Peak State ------------ > --- POWER ------------ Improved Ion Engine > --- PROPULSION ------- Aluminum Leg Carbon-fiber Leg > --- UTILITY ---------- Improved Heat Sink Small Storage Unit Visual Processing Unit Improved Signal Interpreter Hacking Suite Hacking Suite > --- WEAPON ----------- Shock Rifle Pulse Rifle > --- INVENTORY -------- Improved Ion Engine Aluminum Leg Compact Wheel Light Armor Plating Thief Drone Bay Particle Gun Light Assault Rifle Grenade Launcher [Rating: 28] Favorites ----------- Power Ion Engine Engine Ion Engine Power Core Light Nuclear Core Propulsion Aluminum Leg Leg Aluminum Leg Wheel Compact Wheel Utility Small Storage Unit Device Heat Sink Storage Small Storage Unit Processor Visual Processing Unit Hackware Hacking Suite Protection Light Armor Plating Weapon Particle Cannon Energy Gun Small Laser Energy Cannon Particle Cannon Ballistic Gun Light Assault Rifle Launcher Grenade Launcher Impact Weapon Heavy Mace Build | -11 -10 -10 -9 -9 -8 ------- Run | Yrd Mat Min Mat Min Mat Slots Evolved 4 | . . . 2 . 2 Power . | . . . . . . Propulsion . | . . . . . . Utility 4 | . . . 2 . 2 Weapon . | . . . . . . Parts Attached 58 | 7 2 3 12 11 23 Power 11 | 1 1 1 3 1 4 Engine 9 | 1 1 . 3 1 3 Core 2 | . . 1 . . 1 Reactor . | . . . . . . Propulsion 12 | 2 . 1 1 3 5 Treads . | . . . . . . Leg 11 | 2 . 1 1 3 4 Wheel 1 | . . . . . 1 Hover . | . . . . . . Flight . | . . . . . . Utility 21 | 2 1 1 5 5 7 Device 9 | 1 1 1 3 2 1 Storage 5 | 1 . . 1 2 1 Processor 2 | . . . 1 . 1 Hackware 2 | . . . . . 2 Protection 3 | . . . . 1 2 Artifact . | . . . . . . Weapon 14 | 2 . . 3 2 7 Energy Gun 7 | 2 . . 1 . 4 Energy Cannon 3 | . . . 2 1 . Ballistic Gun 1 | . . . . 1 . Ballistic Cannon . | . . . . . . Launcher 1 | . . . . . 1 Special Weapon . | . . . . . . Impact Weapon 2 | . . . . . 2 Slashing Weapon . | . . . . . . Piercing Weapon . | . . . . . . Special Melee Weapon . | . . . . . . Unidentified Prototypes 1 | . . . . 1 . Parts Lost 13 | . . . . 2 11 Power 2 | . . . . 1 1 Propulsion 4 | . . . . . 4 Utility 5 | . . . . 1 4 Weapon 2 | . . . . . 2 Highest Loss Streak 7 | . . . . 2 7 To Critical Strikes . | . . . . . . Average Slot Usage (%) 97 | . 100 100 98 95 94 Engine 9 | . 14 5 10 10 8 Core 1 | . . 8 . . . Leg 21 | . 28 28 22 22 17 Device 10 | . 14 14 12 12 4 Storage 17 | . 14 14 20 17 16 Processor 7 | . . . 9 11 9 Hackware 5 | . . . . . 16 Protection 1 | . . . . . 3 Energy Gun 10 | . 28 28 4 . 13 Energy Cannon 9 | . . . 17 20 2 Peak Build Rating 28 | 7 7 9 13 19 28 Average Rating 14 | 4 7 8 12 14 23 On Entrance 8 | . 7 7 9 13 13 Naked Turns . | . . . . . . Heaviest Build 23 | 13 13 13 18 20 23 Greatest Support 25 | 20 20 20 20 20 25 Greatest Overweight (x) 3 | . . . . . 3 Average Overweight (x) . | . . . . . . Largest Inventory Capacity 8 | 8 8 8 8 8 8 Average Capacity 7 | 7 8 8 8 8 7 Most Carried 8 | 5 6 8 8 8 8 Average Carried 7 | 3 4 7 7 7 7 Final Capacity 8 | 8 8 8 8 8 5 Final Carried 8 | 3 6 8 8 8 4 Class Distribution -------------------- 60% | Scavenger-Mutant 38% | Mutant Dominant Class ---------------- Mutant | -10/Materials Mutant | -10/Mines Scavenger-Mutant | -9/Materials Mutant | -9/Mines Scavenger-Mutant | -8/Materials Resources | -11 -10 -10 -9 -9 -8 ----------- Run | Yrd Mat Min Mat Min Mat Matter Collected 745 | 270 20 10 130 97 218 Remotely . | . . . . . . Salvage Created 1393 | 53 139 . 297 139 765 Parts 68 | 5 5 . 19 6 33 Haulers Intercepted . | . . . . . . Recyclers Shooed . | . . . . . . Parts Field Recycled . | . . . . . . Retrieved Matter . | . . . . . . Parts Self-Destructed . | . . . . . . Prevented . | . . . . . . Kills | -11 -10 -10 -9 -9 -8 ------- Run | Yrd Mat Min Mat Min Mat Combat Hostiles Destroyed 26 | . 3 . 7 3 13 Melee 2 | . . . . . 2 Guns 13 | . 3 . 1 . 9 Cannons 9 | . . . 6 3 . AOE 1 | . . . . . 1 Classes Destroyed 10 | 1 1 . 4 1 3 Worker 1 | . . . . . 1 Builder 1 | . . . . . 1 Tunneler 2 | 2 . . . . . Recycler 1 | . . . . . 1 Operator 3 | . . . 2 . 1 Watcher 2 | . . . 1 . 1 Swarmer 3 | . . . 3 . . Grunt 18 | . 3 . 2 2 11 Duelist 1 | . . . . 1 . Sentry 4 | . . . 2 . 2 Best Kill Streak 5 | 2 2 . 3 3 5 Combat Bots Only 3 | . 2 . 3 3 2 Max Kills in Single Turn 2 | 1 1 . 1 1 2 Gunslinging . | . . . . . . Exploded 1 | . . . . . 1 Melee 1 | . . . . . 1 Uniques/NPCs Destroyed . | . . . . . . Combat | -11 -10 -10 -9 -9 -8 -------- Run | Yrd Mat Min Mat Min Mat Hostile Shots Fired 188 | . 17 . 19 37 115 Missed 40 | . 6 . 2 3 29 Damage Taken 2287 | . 156 . 182 524 1425 Core 474 | . 27 . 9 130 308 Absorbed by Shields . | . . . . . . Core Remaining (%) 84 | 100 . 89 . 65 . Volleys Fired 87 | 4 14 2 18 10 39 Largest 2 | 2 2 2 2 2 2 Hottest 136 | 80 80 80 136 136 136 Shots Fired 172 | 8 28 4 36 18 78 Gun 127 | 8 28 4 7 7 73 Cannon 44 | . . . 29 11 4 Launcher 1 | . . . . . 1 Special . | . . . . . . Kinetic 7 | . . . . 7 . Thermal 146 | 8 28 4 36 11 59 Explosive 1 | . . . . . 1 Electromagnetic 18 | . . . . . 18 Robot Hit Streak 14 | 4 6 1 10 5 14 Robot Miss Streak 4 | 1 3 4 1 1 2 Penetration Max . | . . . . . . Secondary Targets . | . . . . . . Shots Hit Robots 117 | 5 17 1 23 12 59 Core Hits 57 | 2 9 1 12 5 28 Critical Kills 1 | . . . . . 1 Critical Parts Destroyed . | . . . . . . Critical Strikes 5 | . . . . . 5 Burn 4 | . . . . . 4 Smash 1 | . . . . . 1 Melee Attacks 12 | . . . . . 12 Impact 12 | . . . . . 12 Slashing . | . . . . . . Piercing . | . . . . . . Sneak Attacks 2 | . . . . . 2 Combat Hostiles . | . . . . . . Follow-up Attacks . | . . . . . . Damage Inflicted 2157 | 57 188 11 425 212 1264 Guns 1195 | 57 188 11 74 30 835 Cannons 557 | . . . 351 164 42 Explosions 87 | . . . . . 87 Melee 300 | . . . . . 300 Ramming 18 | . . . . 18 . Kinetic 30 | . . . . 30 . Thermal 1509 | 57 188 11 425 164 664 Explosive 87 | . . . . . 87 Electromagnetic 213 | . . . . . 213 Impact 300 | . . . . . 300 Slashing . | . . . . . . Piercing . | . . . . . . Highest Corruption 1 | . . . 1 1 . Average Corruption 1 | . . . 1 1 . Corruption Purged . | . . . . . . Corruption Blocked . | . . . . . . Effects 2 | . . . 1 1 . Heat Flow Errors 1 | . . . . 1 . Misfires 1 | . . . 1 . . Overload Shots . | . . . . . . Overflow Damage 66 | . . . 7 . 59 Projectiles 7 | . . . 7 . . Explosions . | . . . . . . Melee 59 | . . . . . 59 Knockbacks 2 | . . . . . 2 Impact 2 | . . . . . 2 Kinetic . | . . . . . . Secondary . | . . . . . . Self-Inflicted Damage . | . . . . . . Shots . | . . . . . . Rammed . | . . . . . . Targets Rammed 2 | . . . . 2 . Kicked 2 | . . . . 2 . Crushed . | . . . . . . Highest Temperature 270 | 54 270 . 216 257 240 Average Temperature 96 | 25 139 . 68 141 87 Received Heat Transfer 1089 | . 135 . 45 162 747 Effects 2 | . . . 1 . 1 Energy Bleed 2 | . . . 1 . 1 Siege Activations . | . . . . . . Robots Corrupted 1 | . . . . . 1 Combat Hostiles . | . . . . . . Parts Fried 7 | . . . . . 7 Impact Corruptions 2 | . . . . . 2 Robots Melted 1 | . . . . . 1 Combat Hostiles 1 | . . . . . 1 Parts Melted 10 | . 1 . 2 . 7 Heat Transferred 3487 | 125 425 25 803 296 1813 Parts Sabotaged . | . . . . . . Parts Stolen . | . . . . . . Parts Stripped . | . . . . . . Power Chain Reactions . | . . . . . . Alert | -11 -10 -10 -9 -9 -8 ------- Run | Yrd Mat Min Mat Min Mat Peak Influence 244 | 10 91 35 190 89 244 Initial 39 | . 6 35 13 39 34 Average 93 | 1 55 35 91 84 138 Maximum Alert Level 1 | . . . . . 1 Low Security (%) 95 | 100 100 100 100 100 85 Level 1 4 | . . . . . 14 Level 2 . | . . . . . . Level 3 . | . . . . . . Level 4 . | . . . . . . Level 5 . | . . . . . . High Security . | . . . . . . Max Security . | . . . . . . Squads Dispatched 5 | . 2 . 2 . 1 Investigation 2 | . 1 . 1 . . Extermination . | . . . . . . Reinforcement 3 | . 1 . 1 . 1 Assault . | . . . . . . Garrison . | . . . . . . Intercept . | . . . . . . Searches Triggered . | . . . . . . Construction Impeded . | . . . . . . Haulers Reinforced . | . . . . . . Active Scanning Responses . | . . . . . . Cargo Convoy Interrupts . | . . . . . . Stealth | -11 -10 -10 -9 -9 -8 --------- Run | Yrd Mat Min Mat Min Mat Distress Signals 1 | . . . . . 1 Communications Jammed . | . . . . . . Distress Signals . | . . . . . . Times Spotted 46 | . 5 1 11 3 26 Peak Tracking Total 9 | . 3 1 3 3 9 Tactical Retreats 4 | . . . 1 . 3 Traps | -11 -10 -10 -9 -9 -8 ------- Run | Yrd Mat Min Mat Min Mat Traps Triggered 1 | . . . 1 . . Indirectly . | . . . . . . Trap Hack Attempts . | . . . . . . Triggered . | . . . . . . Disarmed . | . . . . . . Reprogrammed . | . . . . . . Reused . | . . . . . . Traps Extracted . | . . . . . . Installed . | . . . . . . Triggered . | . . . . . . Machines | -11 -10 -10 -9 -9 -8 ---------- Run | Yrd Mat Min Mat Min Mat Machines Disabled 2 | . . . . . 2 Max in Single Turn 1 | . . . . . 1 Machines Repaired . | . . . . . . Machines Dismantled . | . . . . . . Machines Sabotaged . | . . . . . . Overloaded Fab Kills . | . . . . . . Hacking | -11 -10 -10 -9 -9 -8 --------- Run | Yrd Mat Min Mat Min Mat Machines Accessed 13 | . 1 . 6 1 5 Terminals 10 | . 1 . 5 . 4 Fabricators . | . . . . . . Repair Stations . | . . . . . . Recycling Units 1 | . . . . . 1 Scanalyzers 1 | . . . 1 . . Garrison Access . | . . . . . . Total Hacks 29 | . 3 . 15 1 10 Successful 10 | . . . 4 1 5 Failed 19 | . 3 . 11 . 5 Catastrophic 5 | . 1 . 2 . 2 Database Lockouts . | . . . . . . Manual 22 | . 3 . 11 . 8 Terminals 24 | . 3 . 12 . 9 Fabricators . | . . . . . . Repair Stations . | . . . . . . Recycling Units 1 | . . . . . 1 Scanalyzers 3 | . . . 3 . . Garrison Access . | . . . . . . Terminal Hacks 7 | . . . 2 1 4 Part Schematic 1 | . . . . . 1 Prototype ID Bank 1 | . . . 1 . . Open Door 1 | . . . . 1 . Level Access Points 1 | . . . . . 1 Terminal Index 2 | . . . 1 . 1 Alert Level 1 | . . . . . 1 Fabricator Hacks . | . . . . . . Repair Station Hacks . | . . . . . . Recycling Unit Hacks 1 | . . . . . 1 Report Inventory 1 | . . . . . 1 Scanalyzer 2 | . . . 2 . . Insert Component 1 | . . . 1 . . Analyze 1 | . . . 1 . . Garrison Access Hacks . | . . . . . . Unauthorized Hacks . | . . . . . . Terminals . | . . . . . . Fabricators . | . . . . . . Repair Stations . | . . . . . . Recycling Units . | . . . . . . Scanalyzers . | . . . . . . Garrison Access . | . . . . . . Data Cores Recovered 2 | . 1 . 1 . . Used 1 | . . . 1 . . Hacking Detections 10 | . 1 . 6 . 3 Full Trace Events 3 | . 1 . 2 . . Feedback Events . | . . . . . . Feedback Blocked . | . . . . . . Robot Schematics Acquired . | . . . . . . Robots Built . | . . . . . . Authchips . | . . . . . . Time . | . . . . . . Total Robot Build Rating . | . . . . . . Part Schematics Acquired 2 | . . . 1 . 1 Parts Built . | . . . . . . Authchips . | . . . . . . Time . | . . . . . . Total Part Build Rating . | . . . . . . Parts Repaired . | . . . . . . Time . | . . . . . . Parts Recycled . | . . . . . . Recycled Matter . | . . . . . . Retrieved Matter . | . . . . . . Retrieved Components . | . . . . . . Parts Scanalyzed 1 | . . . 1 . . Part Schematics Acquired 1 | . . . 1 . . Parts Damaged . | . . . . . . Bothacking | -11 -10 -10 -9 -9 -8 ------------ Run | Yrd Mat Min Mat Min Mat Used RIF Installer . | . . . . . . Robots Hacked . | . . . . . . Non-combat . | . . . . . . Combat . | . . . . . . Robot Hacks Applied . | . . . . . . Relay Couplers Released . | . . . . . . Fabnet Peak Effective % . | . . . . . . Robots Rewired . | . . . . . . Allies Hacked . | . . . . . . Hacks Repelled . | . . . . . . Allies | -11 -10 -10 -9 -9 -8 -------- Run | Yrd Mat Min Mat Min Mat Total Allies . | . . . . . . Largest Group . | . . . . . . Highest-Rated Group . | . . . . . . Highest-Rated Ally . | . . . . . . Total Orders 2 | . . . . 2 . EXPLORE 1 | . . . . 1 . RETURN 1 | . . . . 1 . Ally Attacks . | . . . . . . Total Damage . | . . . . . . Kills . | . . . . . . Allies Corrupted . | . . . . . . Allies Melted . | . . . . . . Intel | -11 -10 -10 -9 -9 -8 ------- Run | Yrd Mat Min Mat Min Mat Robot Analysis Total . | . . . . . . Derelict Logs Recovered 1 | . . 1 . . . Drone Launches 1 | . . . . 1 . Drone Recoveries 1 | . . . . 1 . Exploration | -11 -10 -10 -9 -9 -8 ------------- Run | Yrd Mat Min Mat Min Mat Turns Passed 2185 | 70 156 215 743 334 667 Spaces Moved 1076 | 40 81 155 352 164 284 Core 7 | 6 . . . . 1 Treads . | . . . . . . Legs 1065 | 34 81 155 352 164 279 Wheels 4 | . . . . . 4 Hover . | . . . . . . Flight . | . . . . . . Fastest Speed 50 | 50 120 120 120 120 100 Average Speed 119 | 109 120 120 120 120 120 Slowest Speed 200 | 120 120 120 120 120 200 Overloaded Moves . | . . . . . . Propulsion Burnouts . | . . . . . . Robots Hopped . | . . . . . . Cave-ins Triggered . | . . . . . . Exploration Rate (%) 38 | 4 22 51 32 94 25 Regions Visited 5 Branch Regions 2 Pre-discovered Areas 1 | . . 1 . . . Known Exits Taken . | . . . . . . Unknown Exits Taken 5 | 1 1 1 1 1 . Scrap Searched . | . . . . . . Spaces Dug 2 | . . . . . 2 Terrain Destroyed 6 | . . . . . 6 Melee 2 | . . . . . 2 Projectile . | . . . . . . AOE 4 | . . . . . 4 Terrain Rammed . | . . . . . . Walls Destroyed . | . . . . . . Machines Disabled . | . . . . . . Actions | -11 -10 -10 -9 -9 -8 --------- Run | Yrd Mat Min Mat Min Mat Total 1775 | 55 111 180 639 282 508 Wait 489 | . 13 16 237 90 133 Move 1071 | 39 80 154 351 163 284 Hop . | . . . . . . Pick Up 26 | 5 2 3 8 3 5 Fast Attach 19 | 5 . . 5 3 6 Attach 13 | 2 . 1 1 3 6 Detach 2 | . . 1 . 1 . Swap 26 | . 2 2 6 5 11 Drop 28 | . . 1 13 2 12 Fire 87 | 4 14 2 18 10 39 Melee 12 | . . . . . 12 Ram . | . . . . . . Kick 2 | . . . . 2 . Crush . | . . . . . . Escape Stasis . | . . . . . . Rewire . | . . . . . . Trap . | . . . . . . Miscellaneous . | . . . . . . Route ------- -11/Scrapyard -10/Materials -10/Mines -9/Materials -9/Mines (discovered 2 exits: *Mat x2) -8/Materials (discovered 4 exits: Fac x3 / *Sto) History --------- Turn | Location | Event 8 | -11/Scrapyard | Discovered new exit (range 16) 71 | -11/Scrapyard | Entered Materials 156 | -10/Materials | Met 8R-AWN 218 | -10/Materials | Discovered new exit (range 9) 227 | -10/Materials | Entered Mines 228 | -10/Mines | Learned location of Storage (-8) 228 | -10/Mines | Followed 8R-AWN into the Mines 245 | -10/Mines | Learned Materials stockpile data 300 | -10/Mines | YI-UF0 nonchalantly dropped a Grenade Launcher on the ground 306 | -10/Mines | Build established: Mutant 433 | -10/Mines | Discovered new exit (range 7) 442 | -10/Mines | Entered Materials 442 | -9/Materials | Evolved 2 slots: Utility x2 747 | -9/Materials | Build established: Scavenger-Mutant 1158 | -9/Materials | Discovered new exit (range 12) 1185 | -9/Materials | Entered Mines 1315 | -9/Mines | Found the Drone Emporium 1357 | -9/Mines | Found Prototype Device 1368 | -9/Mines | Identified Thief Drone Bay 1408 | -9/Mines | Discovered new exit (range 64) 1435 | -9/Mines | Discovered new exit (range 16) 1480 | -9/Mines | Build established: Mutant 1519 | -9/Mines | Entered Materials 1519 | -8/Materials | Evolved 2 slots: Utility x2 1609 | -8/Materials | Identified exit to Factory 1715 | -8/Materials | Discovered new exit (range 3) 1719 | -8/Materials | Identified exit to Storage 1882 | -8/Materials | Build established: Scavenger-Mutant 2178 | -8/Materials | Core integrity fell below 50% 2186 | -8/Materials | Self-destructed Last Messages --------------- K-01 Serf collects debris. Carbon-fiber Leg destroyed. Sml. Storage Unit destroyed. K-01 Serf destroyed. Acquired 5 matter. Acquired 3 matter. R-06 Scavenger collects Wheel. K-01 Serf collects debris. R-06 Scavenger collects Imp. Heat Sink. K-01 Serf collects debris. G-47 Trooper knocked back. U-05 Engineer lays Concrete. K-01 Serf collects debris. G-47 Trooper suffers critical hit (Smash). G-47 Trooper destroyed. U-05 Engineer lays Concrete. R-06 Scavenger collects Particle Gun. U-05 Engineer lays Concrete. Acquired 7 matter. Com. Wheel destroyed. Map ----- +----------------------------------------------------+ | ????? #????###########?##### #?????? | | ????? #????????????????????# #?????? | | ????? ?????????????????????# #########%#?????? | | ????? ?????????????????????# #???????#[#?????? | | ????? ?????????????????????# #???????# #?????? | | ????? ?????????????????????# #???????#%#?????? | | ????? ?????????????????????# #???????# #?????? | | ????? ?????????????????????# #???????# #?????? | | ????????????????????? ????+ #########+####??? | | ????????????????????? ????# # #??? | | ????????????????????? =????# # ##?? | | ????????????????????? ????# # / #?? | | ??????????????????#### ##### # ##?? | | ??????????????????# # """ #??? | | ??????????????????# # """ [[[ #??? | | ??????????????????# %+% """ [[! #??? | | ??????????????????# %# [[ #??? | | ??????????????????# % # "" #??? | | ??????????????????# % ####+### "T #??? | | ??????????????????# # ##="" #??? | | ??????????????????# # r"g ##%=%* #??? | | ??????????????????# # g"" ###############??? | | ??????????????????# # "" ==#????????????????? | | ??????????????????# #g""" ==#????????????????? | | ??????????????????# + "" #????????????????? | | ??????????????????# %#@g""g] #????????????????? | | ??????????????????# %=#= " #????????????????? | | ??????????????????# # " #????????????????? | | ??????????????????# # " #????????????????? | | ??????????????????# # #????????????????? | | ??????????????????# # * #????????????????? | | ??????????????????# # ] #????????????????? | | ??????????????????# #########????????????????? | | ??????????????????# #????????????????????????? | | ??????????????????# #????????????????????????? | | ??????????????????# #????????????????????????? | | ??????????????????# ?????????????????????????? | | ??????????????????# ?????????????????????????? | | ??????????????????# ?????????????????????????? | | ??????????????????# ?????????????????????????? | | ?????????????????? ?????????????????????????? | | ?????????????????? ?????????????????????????? | | ??????????????????? ?????????????????????????? | | ????????????????????? ?????????????????????????? | | ?????????????????????????????????????????????????? | | ?????????????????????????????????????????????????? | | ?????????????????????????????????????????????????? | | ?????????????????????????????????????????????????? | | ?????????????????????????????????????????????????? | | ?????????????????????????????????????????????????? | +----------------------------------------------------+ Best States ------------- Heat Dissipation 48 Energy Generation 14 Energy Capacity 415 Matter Stores 300 Matter Capacity 300 Sight Range 18 Terrain Scan Density 10 Armor Coverage 150 Evasion (%) 55 Offensive Hacking 20 Item Schematics ----------------- Hacking Suite | -9/Materials | Scanalyzed ECM Suite | -8/Materials | Hacked Robot Schematics ------------------ None Fabricated ------------ Nothing Alien Tech Used ----------------- None Achievements -------------- None Challenges ------------ None Game ------ Seed QuantumCargoThrower Manual? 0 Play Time 00:27:59 Cumulative 28.3 hours Start 2025.01.08 @ 15:53:45 End 2025.01.08 @ 16:22:07 Sessions 1 Manual Loads 0 Difficulty Rogue Special Mode None Game No. 40 Rogue 22 Adventurer 17 Explorer 1 Win Type - Total 3 Types 3/0/0/0/0/0/0/0/0 Lore% 8 Gallery% 33 Achievement% 31 Wizard Run 0 Options --------- Layout 1 ASCII 0 Keyboard 0 Movement Mouse Keybinds 0 Fullscreen 1 Font 24/Smallcaps Map View 50x35 Zoom Use 0% Tactical HUD 0 Map Filters NONE Filters NONE Steam 1 RUN: 4bd49cca-183d-470e-ad7b-c33c13fa66ce